bitfinex/quotes_ETHUSD_20251010
["timestamp","ask_amount","ask_price","bid_price","bid_amount"]
[1760089300268,7.79095913,4349.2,4348.1,0.01]
[1760089300465,18.58695913,4349.2,4348.1,0.01]
[1760089300770,19.04635913,4349.2,4348.1,0.01]
[1760089301432,19.54161526,4349.2,4348.1,0.01]
[1760089304358,19.63381546,4349.2,4348.1,0.01]
[1760089304667,19.75400935,4349.2,4348.1,0.01]
[1760089311488,6.01992364,4349.2,4348.1,0.01]
[1760089311692,14.80672344,4349.2,4348.1,0.01]
[1760089312402,14.31146731,4349.2,4348.1,0.01]
[1760089313157,14.31146731,4349.2,4348.1,0.03299855]
[1760089315509,14.31146731,4349.2,4348.1,0.01]
[1760089315670,11.91746731,4349.2,4348.1,0.01]
[1760089315875,14.31146731,4349.2,4348.1,0.01]
[1760089318384,14.80557677,4349.2,4348.1,0.01]
[1760089320650,5.92657677,4349.2,4348.1,0.01]
[1760089320797,14.68538288,4349.2,4348.1,0.01]
[1760089321141,5.80638288,4349.2,4348.1,0.01]
[1760089321301,14.68538288,4349.2,4348.1,0.01]
[1760089324040,14.68458288,4349.2,4348.1,0.01]
[1760089324239,4.71338288,4349.2,4348.2,2.29976577]
[1760089324443,11.16387342,4349.2,4348.3,2.32273592]
[1760089324639,8.8646,4349.2,4348.4,2.29965549]
[1760089324859,11.16387342,4349.2,4348.5,2.32261529]
[1760089325163,8.8646,4349.2,4348.5,0.02299643]
[1760089325302,6.485,4349.2,4348.8,0.452]
[1760089325502,6.485,4349.2,4348.9,0.02299432]
[1760089325734,6.485,4349.2,4348.7,2.29953695]
[1760089326041,6.9446,4349.2,4348.8,2.29947598]
[1760089326202,7.5782,4349.2,4348.7,2.29952721]
[1760089327310,7.5782,4349.2,4348.8,0.02299484]
[1760089327843,7.5782,4349.2,4348.8,2.29947319]
[1760089328232,7.5782,4349.2,4349.1,0.26394058]
[1760089328411,7.5782,4349.2,4349.1,0.26494058]
[1760089328740,7.5802,4349.2,4349.1,0.24194732]
[1760089329044,7.5802,4349.2,4349.1,0.011]
[1760089330102,7.1206,4349.2,4349.1,0.011]
[1760089330332,7.5802,4349.2,4349.1,0.011]
[1760089332146,7.1206,4349.2,4349.1,0.011]
[1760089336842,7.5802,4349.2,4349.1,0.011]
[1760089337270,7.1206,4349.2,4349.1,0.011]
[1760089338432,7.1206,4349.2,4349.1,0.24204132]
[1760089338638,7.1206,4349.2,4349.1,0.26503458]
[1760089339372,7.1206,4349.2,4349.1,0.24204132]
[1760089340759,7.1196,4349.2,4349.1,2.56436087]
[1760089341473,0.6356,4349.2,4349.1,2.54136761]
[1760089341771,0.002,4349.2,4349.1,2.99336761]
[1760089341969,0.002,4349.2,4349.1,3.10776761]
[1760089345803,0.002,4349.2,4349.1,7.98884658]
[1760089345984,0.002,4349.2,4349.1,3.10776761]
[1760089346185,0.0012,4349.2,4349.1,3.10776761]
[1760089346905,0.0012,4349.2,4349.1,7.98884658]
[1760089347091,0.0012,4349.2,4349.1,7.96585332]
[1760089349114,0.0012,4349.2,4349.1,10.52145332]
[1760089349800,0.0012,4349.2,4349.1,17.00545332]
[1760089351581,0.0012,4349.2,4349.1,16.27372221]
[1760089352104,0.0012,4349.2,4349.1,9.78972221]
[1760089352314,0.0012,4349.2,4349.1,12.14636761]
[1760089354214,0.0012,4349.2,4349.1,5.66336761]
[1760089354504,0.0012,4349.2,4349.1,12.14636761]
[1760089354693,0.0012,4349.2,4349.1,2.65576761]
[1760089360306,0.0012,4349.2,4349.1,2.54136761]
[1760089361206,0.0012,4349.2,4349.1,2.97456761]
[1760089361380,0.0012,4349.2,4349.1,2.99756087]
[1760089361580,0.0012,4349.2,4349.1,9.47956087]
[1760089361800,0.0012,4349.2,4349.1,2.97456761]
[1760089362000,0.0012,4349.2,4349.1,9.47956087]
[1760089362199,0.0012,4349.2,4349.1,9.45656761]
[1760089362778,0.0012,4349.2,4349.1,2.97456761]
[1760089363088,0.0012,4349.2,4349.1,2.99756087]
[1760089363294,0.0012,4349.2,4349.1,9.47956087]
[1760089363613,0.0012,4349.2,4349.1,9.02336761]
[1760089364101,0.0012,4349.2,4349.1,9.45656761]
[1760089365119,0.0012,4349.2,4349.1,9.02336761]
[1760089365492,0.0012,4349.2,4349.1,9.45656761]
[1760089367981,0.0012,4349.2,4349.1,9.02336761]
[1760089368299,0.0004,4349.2,4349.1,9.02336761]
[1760089369512,0.0004,4349.2,4349.1,9.45756761]
[1760089372212,0.0004,4349.2,4349.1,2.54136761]
[1760089372416,0.0004,4349.2,4349.1,9.02336761]
[1760089373202,0.0004,4349.2,4349.1,9.45756761]
[1760089373519,0.0004,4349.2,4349.1,2.97556761]
[1760089373704,0.0004,4349.2,4349.1,9.48056087]
[1760089373909,0.0004,4349.2,4349.1,9.45756761]
[1760089374713,0.0004,4349.2,4349.1,2.54136761]
[1760089375024,0.0004,4349.2,4349.1,0.011]
[1760089375226,0.446,4349.2,4349.1,0.011]
[1760089375391,1.0796,4349.2,4349.1,0.011]
[1760089376924,0.634,4349.2,4349.1,0.011]
[1760089378025,0.634,4349.2,4349.1,2.31032629]
[1760089379632,0.0004,4349.2,4349.1,3.26769419]
[1760089380530,0.0004,4349.2,4349.1,9.78704879]
[1760089380748,0.0004,4349.2,4349.1,11.68405553]
[1760089380896,0.0004,4349.2,4349.1,11.77619287]
[1760089382336,0.0004,4349.2,4349.1,9.38319287]
[1760089382493,0.0004,4349.2,4349.1,14.13183827]
[1760089382699,0.0004,4349.2,4349.1,18.25819287]
[1760089390275,0.0016,4349.7,4349.6,2.29906198]
[1760089390573,0.0016,4349.7,4349.6,9.26387206]
[1760089390763,0.0016,4349.7,4349.6,9.68728145]
[1760089392473,0.0016,4349.7,4349.6,9.68628145]
[1760089395838,0.0016,4349.7,4349.6,9.80068145]
[1760089400096,0.0016,4349.7,4349.6,9.89281858]
[1760089406783,0.0016,4349.7,4349.6,15.93917318]
[1760089409095,0.0016,4349.7,4349.6,16.05332656]
[1760089409479,0.0016,4349.7,4349.6,11.92697196]
[1760089409685,0.0016,4349.7,4349.6,5.33181858]
[1760089409864,0.0016,4349.7,4349.6,18.33217318]
[1760089412310,0.0008,4349.7,4349.6,18.33217318]
[1760089413504,0.0008,4349.7,4349.6,19.06121033]
[1760089416793,0.0008,4349.7,4349.6,19.06221033]
[1760089422233,0.0008,4349.7,4349.6,10.20081033]
[1760089422418,0.0008,4349.7,4349.6,5.34541858]
[1760089422604,0.0008,4349.7,4349.6,14.21841858]
[1760089423332,0.0008,4349.7,4349.6,11.82541858]
[1760089429623,0.0008,4349.7,4349.6,5.34541858]
[1760089429828,0.0008,4349.7,4349.6,11.82541858]
[1760089432391,0.0008,4349.7,4349.6,0.001]
[1760089432564,0.0008,4349.7,4349.6,2.30006198]
[1760089432769,0.0008,4349.7,4349.6,8.36206198]
[1760089433493,0.0008,4349.7,4349.6,8.78006198]
[1760089433662,0.0008,4349.7,4349.6,2.30006198]
[1760089433863,0.0008,4349.7,4349.6,8.78006198]
[1760089434058,0.0008,4349.7,4349.6,0.001]
[1760089434284,1.1036,4349.7,4349.6,0.001]
[1760089434490,1.1028,4349.7,4349.6,0.001]
[1760089434795,3.40180912,4349.7,4349.6,0.001]
[1760089436258,3.40380912,4349.7,4349.6,0.001]
[1760089437489,5.32380912,4349.7,4349.6,0.001]
[1760089438690,3.0248,4349.7,4349.6,0.001]
[1760089439317,5.32380912,4349.7,4349.6,0.001]
[1760089446007,11.80580912,4349.7,4349.6,0.001]
[1760089456556,11.80500912,4349.7,4349.6,0.001]
[1760089463263,12.3007595,4349.7,4349.6,0.001]
[1760089471305,12.92020786,4349.7,4349.6,0.001]
[1760089471504,13.01238512,4349.7,4349.6,0.001]
[1760089471888,13.13255655,4349.7,4349.6,0.001]
[1760089473313,12.51310819,4349.7,4349.6,0.001]
[1760089474203,13.13255655,4349.7,4349.6,0.001]
[1760089475182,12.51310819,4349.7,4349.6,0.001]
[1760089475490,16.6435558,4349.7,4349.6,0.001]
[1760089478635,16.6427558,4349.7,4349.6,0.001]
[1760089482906,12.51230819,4349.7,4349.6,0.001]
[1760089483539,12.51330819,4349.7,4349.6,0.001]
[1760089483705,11.87970819,4349.7,4349.6,0.001]
[1760089484116,10.50113093,4349.7,4349.6,0.001]
[1760089484551,12.42113093,4349.7,4349.6,0.001]
[1760089487022,10.00195038,4349.7,4349.6,0.001]
[1760089487752,12.3009595,4349.7,4349.6,0.001]
[1760089490457,16.43140711,4349.7,4349.6,0.001]
[1760089491122,12.3009595,4349.7,4349.6,0.001]
[1760089491322,16.43140711,4349.7,4349.6,0.001]
[1760089493705,12.3009595,4349.7,4349.6,0.001]
[1760089493866,16.43140711,4349.7,4349.6,0.001]
[1760089497897,9.4912,4349.7,4349.6,0.001]
[1760089498097,9.0386,4349.7,4349.6,0.001]
[1760089499202,2.5556,4349.7,4349.6,0.001]
[1760089500921,2.5548,4349.7,4349.6,0.001]
[1760089502109,0.6348,4349.7,4349.6,0.46092766]
[1760089503122,1.0874,4349.7,4349.6,0.001]
[1760089504917,7.51685673,4349.7,4349.6,0.001]
[1760089509053,9.93254289,4349.7,4349.6,0.001]
[1760089509412,5.80209528,4349.7,4349.6,0.001]
[1760089511916,2.41688616,4349.7,4349.6,0.001]
[1760089512143,2.41688616,4349.7,4349.6,0.23101856]
[1760089512144,0.0012,4349.7,4349.6,0.23101856]
[1760089512549,0.0012,4349.7,4349.6,2.98877115]
[1760089512716,0.0012,4349.7,4349.6,2.96578054]
[1760089512934,0.0012,4349.7,4349.6,3.6798665]
[1760089515552,0.0012,4349.7,4349.6,3.65687589]
[1760089515753,0.0012,4349.7,4349.6,3.6798665]
[1760089515954,0.0012,4349.7,4349.6,3.7942665]
[1760089516370,0.0012,4349.7,4349.6,10.2762665]
[1760089516668,0.0012,4349.7,4349.6,10.25327589]
[1760089521524,0.0012,4349.7,4349.6,10.25227589]
[1760089522834,0.0004,4349.7,4349.6,10.25227589]
[1760089526156,0.0004,4349.7,4349.6,12.17227589]
[1760089528872,0.0004,4349.7,4349.6,16.3027235]
[1760089529975,1e-08,4350.2,4349.7,4.21900912]
[1760089530272,1e-08,4350.2,4350.1,4.29654761]
[1760089530477,1e-08,4350.2,4350.1,13.1003333]
[1760089530675,1e-08,4350.2,4350.1,15.11174533]
[1760089530972,1e-08,4350.2,4350.1,15.56244533]
[1760089531271,1e-08,4350.2,4350.1,15.65455785]
[1760089531459,1e-08,4350.2,4350.1,17.65491309]
[1760089534462,1e-08,4350.2,4350.1,17.77019178]
[1760089534670,1e-08,4350.2,4350.1,17.65491309]
[1760089535439,1e-08,4350.2,4350.1,18.49555203]
[1760089535769,1e-08,4350.2,4350.1,20.76962843]
[1760089540681,1e-08,4350.2,4350.1,7.04246548]
[1760089540981,1e-08,4350.2,4350.1,3.00771024]
[1760089541280,1e-08,4350.2,4350.1,4.92771024]
[1760089541447,1e-08,4350.2,4350.1,11.87971024]
[1760089541778,1e-08,4350.2,4350.1,13.79971024]
[1760089544854,0.00120001,4350.6,4350.5,2.29858636]
[1760089545157,0.00120001,4350.6,4350.5,8.77858636]
[1760089545382,0.00120001,4350.6,4350.5,9.22928636]
[1760089545557,0.00120001,4350.6,4350.5,9.32140418]
[1760089550868,0.00120001,4350.6,4350.5,9.43580418]
[1760089553100,0.00120001,4350.6,4350.5,9.43480418]
[1760089555284,0.00120001,4350.6,4350.5,2.50510418]
[1760089555616,0.00120001,4350.6,4350.5,8.98410418]
[1760089556112,0.00120001,4350.6,4350.5,2.50510418]
[1760089556538,0.00120001,4350.6,4350.5,2.50610418]
[1760089556717,0.00120001,4350.6,4350.5,8.81710418]
[1760089557109,0.00120001,4350.6,4350.5,9.25970418]
[1760089557617,0.00120001,4350.6,4350.5,2.94870418]
[1760089557820,0.00120001,4350.6,4350.5,9.42770418]
[1760089558115,0.00120001,4350.6,4350.5,2.94870418]
[1760089558314,0.00120001,4350.6,4350.5,9.42770418]
[1760089558821,0.00120001,4350.6,4350.5,8.98510418]
[1760089559816,0.00120001,4350.6,4350.5,0.20751782]
[1760089560017,0.00120001,4350.6,4350.5,0.45311782]
[1760089560224,0.00120001,4350.6,4350.5,2.75170418]
[1760089561889,0.00120001,4350.6,4350.5,0.45311782]
[1760089562085,0.00120001,4350.6,4350.5,2.75170418]
[1760089563102,0.00120001,4350.6,4350.5,2.65958636]
[1760089565348,0.00120001,4350.6,4350.5,0.001]
[1760089565514,3.39003354,4350.6,4350.5,0.001]
[1760089565835,4.08111297,4350.6,4350.5,0.001]
[1760089566645,1.78257944,4350.6,4350.5,0.001]
[1760089567015,4.08031297,4350.6,4350.5,0.001]
[1760089567608,6.00031297,4350.6,4350.5,0.001]
[1760089569546,12.48031297,4350.6,4350.5,0.001]
[1760089570155,11.78923354,4350.6,4350.5,0.001]
[1760089571253,5.30923354,4350.6,4350.5,0.001]
[1760089571558,11.78923354,4350.6,4350.5,0.001]
[1760089578937,11.79123354,4350.6,4350.5,0.001]
[1760089579787,11.8833989,4350.6,4350.5,0.001]
[1760089580083,12.37847429,4350.6,4350.5,0.001]
[1760089580235,12.49862959,4350.6,4350.5,0.001]
[1760089581740,12.49862959,4350.6,4350.0,0.001]
[1760089581741,2.93239772,4350.1,4350.0,0.001]
[1760089581968,18.58056067,4350.1,4350.0,0.001]
[1760089582147,19.53233606,4350.1,4350.0,0.001]
[1760089582976,19.62450694,4350.1,4350.0,0.001]
[1760089586246,26.66450694,4350.1,4350.0,0.001]
[1760089588057,2.5536,4350.0,4349.6,0.001]
[1760089588262,2.5536,4350.0,4349.1,0.011]
[1760089588263,1.92,4349.6,4349.1,0.011]
[1760089588486,9.70603637,4349.2,4349.1,0.011]
[1760089588786,18.58303637,4349.2,4349.1,0.011]
[1760089588962,19.11723105,4349.2,4349.1,0.011]
[1760089591366,19.61162488,4349.2,4349.1,0.011]
[1760089591558,19.61162488,4349.2,4348.6,0.001]
[1760089591559,0.6336,4348.7,4348.6,0.001]
[1760089591885,16.18930074,4348.7,4348.6,0.001]
[1760089592090,0.6336,4348.5,4348.1,0.01]
[1760089592287,2.5536,4348.1,4347.1,0.01]
[1760089592584,5.70406295,4347.2,4347.1,0.01]
[1760089592787,14.48939419,4347.2,4347.1,0.01]
[1760089592981,14.93219419,4347.2,4347.1,0.01]
[1760089595468,14.21345733,4347.2,4347.1,0.01]
[1760089595667,11.91312609,4347.2,4347.1,0.01]
[1760089595896,14.21345733,4347.2,4347.1,0.01]
[1760089596104,11.91312609,4347.2,4347.1,0.01]
[1760089596300,0.6336,4347.2,4347.1,0.01]
[1760089596463,7.5614,4347.2,4347.1,0.01]
[1760089597294,7.1186,4347.2,4347.1,0.01]
[1760089597589,1.92,4347.5,4347.2,2.30032533]
[1760089597763,6.43438808,4347.9,4347.1,0.01]
[1760089597764,0.6336,4347.3,4347.1,0.01]
[1760089597969,0.1144,4347.2,4347.1,0.01]
[1760089598159,0.5572,4347.2,4347.1,0.01]
[1760089600391,7.0432,4347.2,4347.1,0.01]
[1760089600592,7.6768,4347.2,4347.1,0.01]
[1760089600798,9.97713124,4347.2,4347.1,0.01]
[1760089601625,16.03155733,4347.2,4347.1,0.01]
[1760089604621,11.89713124,4347.2,4347.1,0.01]
[1760089604781,16.03155733,4347.2,4347.1,0.01]
[1760089604984,11.89713124,4347.2,4347.1,0.01]
[1760089607329,16.03155733,4347.2,4347.1,0.01]
[1760089607916,11.89813124,4347.2,4347.1,0.01]
[1760089610120,11.89813124,4347.2,4347.1,0.011]
[1760089611204,11.89733124,4347.2,4347.1,0.011]
[1760089617142,12.39265224,4347.2,4347.1,0.011]
[1760089617345,11.89733124,4347.2,4347.1,0.011]
[1760089618150,12.39296778,4347.2,4347.1,0.011]
[1760089622055,9.64983654,4347.2,4347.1,0.011]
[1760089622255,0.1144,4347.4,4347.1,2.31137255]
[1760089622566,0.1144,4347.4,4347.3,2.30027833]
[1760089622717,0.1144,4347.4,4347.2,2.76147899]
[1760089623146,0.6336,4347.3,4347.2,2.76147899]
[1760089623358,0.1144,4347.4,4347.2,2.76147899]
[1760089623657,0.6336,4347.3,4347.2,2.76147899]
[1760089624160,0.6336,4347.3,4347.2,0.461186]
[1760089624451,0.6336,4347.3,4347.1,0.011]
[1760089624657,0.6336,4347.3,4347.1,2.31138124]
[1760089625763,0.6336,4347.3,4347.2,2.30033124]
[1760089626578,0.6336,4347.3,4347.1,0.011]
[1760089627078,0.6336,4347.3,4347.2,2.77083124]
[1760089627372,0.6336,4347.3,4347.2,3.28135801]
[1760089627574,0.6336,4347.3,4347.2,2.81085801]
[1760089628370,0.6356,4347.3,4347.2,2.81085801]
[1760089629276,0.6356,4347.3,4347.2,3.28135801]
[1760089629477,0.002,4347.3,4347.2,3.39575801]
[1760089631478,0.002,4347.3,4347.2,7.5301841]
[1760089633168,0.0012,4347.3,4347.2,7.5301841]
[1760089633368,0.0012,4347.3,4347.2,9.9251841]
[1760089636453,0.0012,4347.3,4347.2,15.97961019]
[1760089636881,0.0012,4347.3,4347.2,11.8451841]
[1760089637181,0.0012,4347.3,4347.2,15.97961019]
[1760089637488,0.0012,4347.3,4347.2,11.8451841]
[1760089637652,0.0012,4347.3,4347.2,15.97961019]
[1760089637982,0.0012,4347.3,4347.2,11.8451841]
[1760089638479,0.0012,4347.3,4347.2,11.93735159]
[1760089639585,0.0012,4347.3,4347.2,5.4079255]
[1760089639774,0.0012,4347.3,4347.2,14.2879255]
[1760089640093,0.0012,4347.3,4347.2,18.42235159]
[1760089644310,1e-08,4347.8,4347.7,2.3000667]
[1760089644586,1e-08,4348.7,4348.6,2.29959067]
[1760089644786,1e-08,4348.7,4348.6,17.25701266]
[1760089644972,1e-08,4348.7,4348.6,17.7966611]
[1760089649392,1e-08,4348.7,4348.6,13.66223501]
[1760089649567,1e-08,4348.7,4348.6,6.80881744]
[1760089649770,1e-08,4348.7,4348.6,15.68981744]
[1760089650590,1e-08,4348.7,4348.6,6.80881744]
[1760089650975,1e-08,4348.7,4348.6,13.66223501]
[1760089652010,1e-08,4348.7,4348.6,4.78223501]
[1760089652315,1e-08,4348.7,4348.6,11.17609067]
[1760089654298,1e-08,4348.7,4348.6,11.29049067]
[1760089654673,1e-08,4348.7,4348.6,11.29149067]
[1760089654965,1e-08,4348.7,4348.6,4.33399067]
[1760089655215,0.00120001,4349.1,4349.0,2.29937916]
[1760089655412,0.00120001,4349.1,4349.0,8.78637916]
[1760089660937,0.00120001,4349.1,4349.0,8.78537916]
[1760089665737,0.00120001,4349.1,4349.0,6.486]
[1760089666039,0.00120001,4349.1,4349.0,8.78537916]
[1760089666258,0.00120001,4349.1,4348.9,0.1144]
[1760089666461,0.748,4349.0,4348.3,0.1144]
[1760089666617,1.1871,4349.0,4348.5,2.29960619]
[1760089666825,1.1871,4349.0,4348.6,2.39958261]
[1760089667138,1.1871,4349.0,4348.6,6.80458261]
[1760089668051,0.748,4349.0,4348.6,4.505]
[1760089668217,0.4719,4348.9,4348.6,4.505]
[1760089669206,0.4719,4348.8,4348.6,4.505]
[1760089669410,0.748,4349.0,4348.5,0.001]
[1760089669411,0.4719,4348.7,4348.5,0.001]
[1760089669651,0.6336,4348.6,4348.5,0.001]
[1760089670116,3.40509067,4348.6,4348.5,0.001]
[1760089670312,8.26434115,4348.6,4348.5,0.001]
[1760089671019,3.40509067,4348.6,4348.5,0.001]
[1760089671238,1.1055,4348.6,4348.5,0.001]
[1760089671544,3.40509067,4348.6,4348.5,0.001]
[1760089672960,5.82058769,4348.6,4348.5,0.001]
[1760089673456,5.94079288,4348.6,4348.5,0.001]
[1760089675364,6.39057582,4348.6,4348.5,0.001]
[1760089675736,6.5063888,4348.6,4348.5,0.001]
[1760089676236,6.01089178,4348.6,4348.5,0.001]
[1760089676577,6.50528053,4348.6,4348.5,0.001]
[1760089677362,6.50448053,4348.6,4348.5,0.001]
[1760089678762,5.8942788,4348.6,4348.5,0.001]
[1760089678963,14.7762788,4348.6,4348.5,0.001]
[1760089679783,17.71552928,4348.6,4348.5,0.001]
[1760089680078,10.75352928,4348.6,4348.5,0.001]
[1760089680376,19.63652928,4348.6,4348.5,0.001]
[1760089680600,17.24252928,4348.6,4348.5,0.001]
[1760089680771,14.65707361,4348.6,4348.5,0.001]
[1760089681175,19.51632409,4348.6,4348.5,0.001]
[1760089682165,19.06654115,4348.6,4348.5,0.001]
[1760089684154,19.53287882,4348.6,4348.5,0.001]
[1760089685987,19.53287882,4348.6,4348.1,0.001]
[1760089686175,19.53287882,4348.6,4347.6,0.001]
[1760089686176,2.668,4348.1,4347.6,0.001]
[1760089686378,9.71291718,4347.7,4347.6,0.001]
[1760089686554,18.60091718,4347.7,4347.6,0.001]
[1760089686900,19.06951718,4347.7,4347.6,0.001]
[1760089688116,26.10951718,4347.7,4347.6,0.001]
[1760089689469,4.8537196,4347.6,4346.1,0.01]
[1760089689675,9.713711,4346.2,4346.1,0.01]
[1760089689966,9.713711,4346.2,4343.5,4.85925048]
[1760089689967,4.85499003,4345.2,4344.1,0.10224656]
[1760089690198,16.21324051,4345.2,4344.1,0.01]
[1760089690370,16.68184051,4345.2,4344.1,0.01]
[1760089690967,19.07984051,4345.2,4344.1,0.01]
[1760089691615,14.22059003,4345.2,4344.1,0.01]
[1760089691764,14.22059003,4345.2,4344.1,2.31194448]
[1760089691965,14.22059003,4345.2,4344.1,0.01]
[1760089692214,14.68084961,4345.2,4345.1,1e-08]
[1760089692402,14.68084961,4345.2,4344.1,0.01]
[1760089692403,0.6336,4344.8,4344.1,0.01]
[1760089692730,4.8555198,4344.2,4344.1,0.01]
[1760089692863,13.7525198,4344.2,4344.1,0.01]
[1760089693080,13.7525198,4344.2,4341.1,0.01]
[1760089693081,0.6336,4344.0,4341.1,0.01]
[1760089693294,0.217,4343.2,4342.3,2.30292685]
[1760089693498,0.217,4343.2,4341.8,0.4503]
[1760089693499,6.733,4343.2,4342.4,2.30286803]
[1760089693700,6.9846,4343.2,4342.8,2.30264943]
[1760089694294,6.9846,4343.2,4342.2,0.4503]
[1760089694729,6.9846,4343.2,4343.0,2.30254788]
[1760089695045,6.516,4343.2,4342.8,2.30265847]
[1760089695212,6.516,4343.2,4343.0,2.3025532]
[1760089695534,6.516,4343.2,4342.9,2.30259728]
[1760089695737,6.9846,4343.2,4342.9,2.30259915]
[1760089696042,6.9846,4343.2,4343.0,2.3025519]
[1760089696346,6.9846,4343.2,4342.5,2.32581643]
[1760089696653,6.9866,4343.2,4342.5,0.0230282]
[1760089696821,6.9866,4343.2,4342.9,2.30260748]
[1760089697547,6.9866,4343.2,4342.8,2.30265465]
[1760089697706,6.9866,4343.2,4342.7,2.30270483]
[1760089698413,6.9866,4343.2,4342.8,2.30266184]
[1760089698608,6.9866,4343.2,4342.7,2.3027109]
[1760089699139,6.9866,4343.2,4342.8,2.30265686]
[1760089699333,6.9866,4343.2,4342.9,2.30256592]
[1760089699532,6.9858,4343.2,4342.9,2.30256592]
[1760089699937,0.4678,4343.2,4343.0,2.30252835]
[1760089700108,6.518,4343.2,4342.5,2.30282091]
[1760089700307,6.518,4343.2,4342.8,2.30264743]
[1760089700510,6.518,4343.2,4342.8,2.30265187]
[1760089700762,6.518,4343.2,4342.9,2.30260059]
[1760089700961,6.518,4343.2,4342.7,0.02302714]
[1760089701144,6.518,4343.2,4343.1,2.31250282]
[1760089701145,0.748,4343.2,4343.1,2.31250282]
[1760089702011,0.748,4343.2,4343.1,2.84206889]
[1760089702348,0.6336,4343.6,4343.5,2.30229077]
[1760089702650,0.1144,4343.8,4343.5,2.30224573]
[1760089702847,0.6336,4343.7,4343.5,2.30224573]
[1760089703146,0.1144,4343.8,4343.6,2.30223568]
[1760089703348,0.6336,4343.7,4343.6,2.30223568]
[1760089703549,0.6336,4343.7,4343.3,2.30239679]
[1760089703751,0.6336,4343.7,4343.6,2.30223777]
[1760089704048,0.1144,4343.8,4343.6,2.30223777]
[1760089704254,0.6336,4343.7,4343.6,2.30223777]
[1760089705229,0.6336,4343.7,4343.1,0.63194105]
[1760089705431,0.6336,4343.7,4343.3,2.30237976]
[1760089705637,0.6336,4343.7,4343.6,2.30223777]
[1760089705841,0.6336,4343.7,4343.4,2.30234378]
[1760089706058,0.6336,4343.7,4343.5,2.30227217]
[1760089706352,0.6336,4343.7,4343.3,2.30239176]
[1760089706553,0.6336,4343.7,4343.5,2.30224619]
[1760089706740,0.6336,4343.7,4343.1,0.1254]
[1760089706941,0.6336,4343.7,4343.5,2.30226124]
[1760089707723,0.748,4343.8,4343.7,2.30218477]
[1760089709025,0.748,4343.8,4343.6,0.02302237]
[1760089709026,0.6336,4343.7,4343.6,2.30220567]
[1760089709508,0.1144,4343.8,4343.6,2.30220567]
[1760089710393,1.0838,4343.7,4343.1,0.1254]
[1760089710570,1.0838,4343.7,4343.4,2.30233667]
[1760089710764,1.0838,4343.7,4343.1,2.42788433]
[1760089710765,1.0838,4343.7,4343.1,0.1254]
[1760089710969,0.6336,4343.5,4343.1,0.011]
[1760089711167,0.6336,4343.5,4343.1,2.31348047]
[1760089711372,0.6336,4343.3,4343.1,0.011]
[1760089711806,0.6336,4343.5,4343.1,0.011]
[1760089712009,1.0838,4343.2,4343.1,0.011]
[1760089712866,3.3862498,4343.2,4343.1,0.011]
[1760089713060,5.7832498,4343.2,4343.1,0.011]
[1760089713711,7.7032498,4343.2,4343.1,0.011]
[1760089714674,5.4008,4343.2,4343.1,0.011]
[1760089714876,7.7032498,4343.2,4343.1,0.011]
[1760089717205,8.1974902,4343.2,4343.1,0.011]
[1760089717971,3.4980404,4343.2,4343.1,0.011]
[1760089718175,2.5536,4343.1,4342.6,0.001]
[1760089718371,17.61510161,4342.7,4342.6,0.001]
[1760089718607,24.63234201,4342.7,4342.6,0.001]
[1760089718906,25.08254201,4342.7,4342.6,0.001]
[1760089721284,26.16229947,4342.7,4342.6,0.001]
[1760089721496,12.78349703,4342.7,4342.6,0.001]
[1760089721697,25.66264765,4342.7,4342.6,0.001]
[1760089722426,26.28139869,4342.7,4342.6,0.001]
[1760089723497,19.75839869,4342.7,4342.6,0.001]
[1760089723807,28.68139869,4342.7,4342.6,0.001]
[1760089724196,28.06264765,4342.7,4342.6,0.001]
[1760089724721,25.66764765,4342.7,4342.6,0.001]
[1760089724937,28.06464765,4342.7,4342.6,0.001]
[1760089725287,15.18549703,4342.7,4342.6,0.001]
[1760089727589,27.94428374,4342.7,4342.6,0.001]
[1760089730694,27.94528374,4342.7,4342.6,0.001]
[1760089732619,28.06564853,4342.7,4342.6,0.001]
[1760089732839,2.93658005,4342.2,4342.1,0.01]
[1760089733038,11.38258005,4342.2,4342.1,0.01]
[1760089733362,12.31362045,4342.2,4342.1,0.01]
[1760089735359,2.30322935,4341.8,4341.1,0.01]
[1760089735521,9.2224871,4341.2,4341.1,0.01]
[1760089735750,20.39048328,4341.2,4341.1,0.01]
[1760089735940,4.78067655,4340.2,4340.1,1e-08]
[1760089736141,11.30767655,4340.2,4340.1,1e-08]
[1760089736347,11.74447655,4340.2,4340.1,1e-08]
[1760089736650,7.5974,4340.2,4340.1,1e-08]
[1760089736863,11.74447655,4340.2,4340.1,1e-08]
[1760089737033,7.6281,4340.2,4340.1,1e-08]
[1760089739359,7.6291,4340.2,4340.1,1e-08]
[1760089739770,0.2183,4341.2,4340.1,0.42970001]
[1760089739934,1.92,4341.0,4340.2,2.30404128]
[1760089740137,5.756,4340.9,4340.5,2.3038679]
[1760089740337,0.6336,4340.8,4340.3,0.29377413]
[1760089740537,0.6336,4340.6,4340.3,0.29377413]
[1760089740738,0.6336,4340.4,4340.1,1e-08]
[1760089740937,6.527,4340.3,4340.1,1e-08]
[1760089741157,0.6336,4340.2,4340.1,1e-08]
[1760089741360,1.1011,4340.2,4340.1,1e-08]
[1760089742763,1.1011,4340.2,4340.1,0.00100001]
[1760089743543,1.1003,4340.2,4340.1,0.00100001]
[1760089743969,6.9945,4340.2,4340.1,0.00100001]
[1760089745571,7.6281,4340.2,4340.1,0.00100001]
[1760089747574,9.93214128,4340.2,4340.1,0.00100001]
[1760089748011,11.85214128,4340.2,4340.1,0.00100001]
[1760089751273,1.92,4340.2,4340.1,0.00100001]
[1760089751575,8.9125,4340.2,4340.1,0.00100001]
[1760089751773,11.85014128,4340.2,4340.1,0.00100001]